Workbook

Sheet 附表五
A1: 附表5:
A2: 2023年江门市本级政府性基金预算调整情况表
J3: 单位：亿元
A4: 收 入 | F4: 支 出
A5: 项目 | B5: 年初预算数 | C5: 调增额 | D5: 增减额 | E5: 调整预算数 | F5: 项目 | G5: 年初预算数 | H5: 调增额 | I5: 调减额 | J5: 调整预算数
A6: 一、基金预算收入 | B6: 31.0515 | E6: =B6+C6-D6 -> 31.0515 | F6: 一、基金预算支出 | G6: 15.0912 | H6: 2.7000 | J6: =G6+H6-I6 -> 17.7912
A7: 二、上年结转收入 | B7: 2.5822 | E7: =B7+C7-D7 -> 2.5822 | F7: 二、转移性支出 | G7: =G8+G9 -> 6.9527 | H7: =H8+H9 -> 0.0000 | I7: =I8+I9 -> 0.0000 | J7: =J8+J9 -> 6.9527
A8: 三、转移性收入 | B8: =B9+B10 -> 4.5360 | C8: =C9+C10 -> 0.0000 | D8: =D9+D10 -> 0.0000 | E8: =E9+E10 -> 4.5360 | F8: （一）上解上级支出 | J8: =G8+H8-I8 -> 0.0000
A9: （一）上级补助收入 | B9: 1.2360 | E9: 1.2360 | F9: （二）补助下级支出 | G9: 6.9527 | J9: 6.9527
A10: （二）下级上解收入 | B10: 3.3000 | E10: 3.3000 | F10: 三、调出资金 | G10: 19.1257 | J10: 19.1257
A11: 四、债券转贷收入 | B11: =B12+B13 -> 160.0000 | C11: =C12+C13 -> 75.4829 | D11: =D12+D13 -> 0.0000 | E11: =E12+E13 -> 235.4829 | F11: 四、结转下年支出
A12: （一）再融资债券收入 | C12: 47.4829 | E12: =B12+C12-D12 -> 47.4829 | F12: 五、债券转贷支出 | G12: =G13+G14 -> 157.0000 | H12: =H13+H14 -> 59.4101 | I12: =I13+I14 -> 0.0000 | J12: =J13+J14 -> 216.4101
A13: （二）专项债券收入 | B13: 160.0000 | C13: 28.0000 | E13: =B13+C13-D13 -> 188.0000 | F13: （一）再融资债券支出 | H13: =47.4829-13.3728 -> 34.1101 | J13: =G13+H13-I13 -> 34.1101
A14: 五、调入资金 | F14: （二）专项债券支出 | G14: 157.0000 | H14: 25.3000 | J14: 182.3000
F15: 六、债务还本支出 | G15: 0.0001 | H15: 13.3728 | J15: 13.3729
A16: 收入总计 | B16: =B6+B7+B8+B11+B14 -> 198.1697 | C16: =C6+C7+C8+C11+C14 -> 75.4829 | D16: =D6+D7+D8+D11+D14 -> 0.0000 | E16: =E6+E7+E8+E11+E14 -> 273.6526 | F16: 支出总计 | G16: =G6+G7+G10+G11+G12+G15 -> 198.1697 | H16: =H6+H7+H10+H11+H12+H15 -> 75.4829 | I16: =I6+I7+I10+I11+I12+I15 -> 0.0000 | J16: =J6+J7+J10+J11+J12+J15 -> 273.6526
